fUST/lending_fUST_20250607
["ID","MTS","AMOUNT","RATE_DAILY","PERIOD"]
[364908323,1749292246746,-431.20326798,0.00023,2]
[364908324,1749292246766,-4125.32444105,0.00023,2]
[364908325,1749292340040,-431.0,0.00019451,2]
[364908327,1749292443946,163.171526,0.00013699,2]
[364908336,1749292538344,1000.0,0.00025,120]
[364908337,1749292552710,2778.44179593,0.0002547,120]
[364908346,1749293249123,-2189.04,0.00019137,2]
[364908347,1749293249146,-207.4,0.00019712,2]
[364908348,1749293249170,-1688.0,0.00019712,2]
[364908349,1749293249192,-260.0,0.00019723,2]
[364908350,1749293249214,-440.78212784,0.00019724,2]
[364908351,1749293249238,-440.0,0.00019724,2]
[364908352,1749293249259,-432.19609612,0.00019724,2]
[364908353,1749293249282,-440.0,0.00019724,2]
[364908354,1749293249304,-463.16230889,0.00019724,2]
[364908355,1749293249326,-430.0,0.00019724,2]
[364908356,1749293249347,-430.0,0.00019724,2]
[364908357,1749293249368,-217.4782507,0.00019724,2]
[364908358,1749293249390,-466.59345434,0.00019724,2]
[364908359,1749293249410,-430.0,0.00019724,2]
[364908360,1749293249432,-500.0,0.00019724,2]
[364908361,1749293249453,-497.9328961,0.00019724,2]
[364908362,1749293249473,-626.4789578,0.00019725,2]
[364908363,1749293249498,-933.426405,0.00019767,2]
[364908364,1749293249521,-440.0,0.00019998,2]
[364908365,1749293249544,-440.0,0.00019998,2]
[364908366,1749293249567,-200.0,0.0002,2]
[364908367,1749293249593,-213.01382694,0.00020147,2]
[364908368,1749293249616,-500.0,0.00020231,2]
[364908369,1749293249638,-207.96699474,0.00020231,2]
[364908370,1749293249665,-500.0,0.00020231,2]
[364908371,1749293249687,-236.87523403,0.00020231,2]
[364908372,1749293249709,-500.0,0.00020231,2]
[364908373,1749293249731,-332.0651473,0.00020231,2]
[364908374,1749293249755,-229.56495552,0.00020232,2]
[364908375,1749293249776,-487.63070471,0.00020272,2]
[364908376,1749293249797,-440.0,0.00020272,2]
[364908377,1749293249818,-397.46505169,0.00020468,2]
[364908378,1749293249839,-440.0,0.00020546,2]
[364908379,1749293249861,-992.4,0.00020763,2]
[364908380,1749293249885,-440.0,0.00020763,2]
[364908381,1749293249908,-440.0,0.00020763,2]
[364908382,1749293249931,-440.0,0.00020763,2]
[364908383,1749293249956,-440.0,0.00020763,2]
[364908384,1749293249979,-500.0,0.00020763,2]
[364908385,1749293250001,-440.0,0.00020763,2]
[364908386,1749293250022,-440.0,0.00020764,2]
[364908387,1749293250047,-440.0,0.00020764,2]
[364908388,1749293250068,-1143.87,0.00020764,2]
[364908389,1749293250092,-440.0,0.00020764,2]
[364908390,1749293250115,-600.0,0.00020769,2]
[364908391,1749293250140,-1717.91046455,0.00020772,2]
[364908426,1749293438139,-610.02460827,0.00018765,2]
[364908532,1749293474602,163.171526,0.00013699,2]
[364908534,1749293975385,56012.0,0.00024609,30]
[364908543,1749294444122,-300.0,0.00018771,2]
[364908544,1749294444145,-300.0,0.00018771,2]
[364908545,1749294444168,-500.0,0.00018772,2]
[364908546,1749294444192,-500.0,0.00018772,2]
[364908547,1749294444216,-500.0,0.00018772,2]
[364908548,1749294444239,-500.0,0.00018772,2]
[364908549,1749294444261,-500.0,0.00018772,2]
[364908550,1749294444282,-500.0,0.00018772,2]
[364908551,1749294444303,-500.0,0.00018772,2]
[364908552,1749294444326,-500.0,0.00018772,2]
[364908553,1749294444348,-500.0,0.00018772,2]
[364908554,1749294444371,-500.0,0.00018772,2]
[364908555,1749294444393,-500.0,0.00018772,2]
[364908556,1749294444414,-496.97902703,0.00018772,2]
[364908557,1749294444435,-317.95576345,0.00019684,2]
[364908558,1749294444460,-438.61407547,0.00019784,2]
[364908587,1749294632546,-161.27367468,0.00019683,2]
[364908589,1749294632556,-211.97050898,0.00019683,2]
[364908591,1749294632566,-519.50270695,0.00019773,2]
[364908593,1749294632576,-500.0250061,0.00019773,2]
[364908595,1749294632587,-500.0,0.00019773,2]
[364908597,1749294632597,-500.39422673,0.00019773,2]
[364908599,1749294632606,-500.0,0.00019773,2]
[364908601,1749294632616,-500.0,0.00019773,2]
[364908602,1749294632626,-501.96633342,0.00019773,2]
[364908604,1749294632636,-300.0,0.00019782,2]
[364908606,1749294632645,-500.0,0.00019783,2]
[364908608,1749294632655,-500.0,0.00019783,2]
[364908610,1749294632666,-450.27046629,0.00019783,2]
[364908612,1749294632675,-500.0,0.00019783,2]
[364908614,1749294632685,-500.0,0.00019783,2]
[364908616,1749294632695,-500.0,0.00019783,2]
[364908618,1749294632706,-500.0,0.00019783,2]
[364908620,1749294632716,-500.0,0.00019783,2]
[364908621,1749294632726,-500.0,0.00019783,2]
[364908623,1749294632737,-500.0,0.00019783,2]
[364908626,1749294632752,-500.0,0.00019783,2]
[364908628,1749294632767,-500.0,0.00019783,2]
[364908631,1749294632784,-500.0,0.00019783,2]
[364908634,1749294632802,-246.56468431,0.00019783,2]
[364908636,1749294632820,-500.0,0.00019783,2]
[364908639,1749294632833,-500.0,0.00019783,2]
[364908641,1749294632845,-546.11845831,0.00019783,2]
[364908643,1749294632861,-546.11845831,0.00019783,2]
[364908646,1749294632875,-546.11845831,0.00019783,2]
[364908648,1749294632889,-546.11845831,0.00019783,2]
[364908651,1749294632904,-546.11845831,0.00019783,2]
[364908653,1749294632918,-546.11845831,0.00019783,2]
[364908656,1749294632934,-546.11845831,0.00019783,2]
[364908658,1749294632948,-546.11845831,0.00019783,2]
[364908660,1749294632963,-546.11845831,0.00019783,2]
[364908663,1749294632979,-546.11845831,0.00019783,2]
[364908665,1749294632993,-546.11845831,0.00019783,2]
[364908668,1749294633005,-546.11845831,0.00019783,2]
[364908670,1749294633026,-546.11845831,0.00019783,2]
[364908673,1749294633041,-546.11845831,0.00019783,2]
[364908675,1749294633054,-546.11845831,0.00019783,2]
[364908677,1749294633068,-546.11845831,0.00019783,2]
[364908678,1749294633083,-546.11845831,0.00019783,2]
[364908680,1749294633098,-546.11845831,0.00019783,2]
[364908682,1749294633111,-546.11845831,0.00019783,2]
[364908684,1749294633124,-546.11845831,0.00019783,2]
[364908686,1749294633135,-546.11845831,0.00019783,2]
[364908688,1749294633148,-546.11845831,0.00019783,2]
[364908690,1749294633161,-546.11845831,0.00019783,2]
[364908693,1749294633174,-546.11845831,0.00019783,2]
[364908695,1749294633188,-546.11845831,0.00019783,2]
[364908697,1749294633202,-546.11845831,0.00019783,2]
[364908700,1749294633216,-546.11845831,0.00019783,2]
[364908701,1749294633229,-546.11845831,0.00019783,2]
[364908702,1749294633244,-546.11845831,0.00019783,2]
[364908703,1749294633259,-546.11845831,0.00019783,2]
[364908705,1749294633274,-546.11845831,0.00019783,2]
[364908708,1749294633290,-546.11845831,0.00019783,2]
[364908710,1749294633303,-546.11845831,0.00019783,2]
[364908712,1749294633315,-546.11845831,0.00019783,2]
[364908714,1749294633327,-546.11845831,0.00019783,2]
[364908715,1749294633339,-546.11845831,0.00019783,2]
[364908716,1749294633352,-546.11845831,0.00019783,2]
[364908717,1749294633366,-546.11845831,0.00019783,2]
[364908718,1749294633381,-546.11845831,0.00019783,2]
[364908719,1749294633395,-546.11845831,0.00019783,2]
[364908720,1749294633408,-546.11845831,0.00019783,2]
[364908721,1749294633419,-546.11845831,0.00019783,2]
[364908722,1749294633432,-546.11845831,0.00019783,2]
[364908723,1749294633445,-546.11845831,0.00019783,2]
[364908724,1749294633460,-546.11845831,0.00019783,2]
[364908725,1749294633474,-546.11845831,0.00019783,2]
[364908726,1749294633486,-546.11845831,0.00019783,2]
[364908727,1749294633498,-546.11845831,0.00019783,2]
[364908728,1749294633511,-546.11845831,0.00019783,2]
[364908729,1749294633523,-546.11845831,0.00019783,2]
[364908730,1749294633535,-546.11845831,0.00019783,2]
[364908731,1749294633549,-546.11845831,0.00019783,2]
[364908732,1749294633564,-546.11845831,0.00019783,2]
[364908733,1749294633577,-546.11845831,0.00019783,2]
[364908734,1749294633590,-546.11845831,0.00019783,2]
[364908735,1749294633602,-546.11845831,0.00019783,2]
[364908736,1749294633614,-546.11845831,0.00019783,2]
[364908737,1749294633627,-546.11845831,0.00019783,2]
[364908738,1749294633640,-546.11845831,0.00019783,2]
[364908739,1749294633653,-546.11845831,0.00019783,2]
[364908740,1749294633679,-546.11845831,0.00019783,2]
[364908741,1749294633698,-546.11845831,0.00019783,2]
[364908742,1749294633713,-546.11845831,0.00019783,2]
[364908743,1749294633729,-546.11845831,0.00019783,2]
[364908744,1749294633745,-500.0,0.00019783,2]
[364908745,1749294633759,-250.0,0.00019783,2]
[364908746,1749294633774,-527.91450971,0.00019783,2]
[364908747,1749294633788,-527.91450971,0.00019783,2]
[364908748,1749294633802,-527.91450971,0.00019783,2]
[364908749,1749294633816,-527.91450971,0.00019783,2]
[364908750,1749294633829,-527.91450971,0.00019783,2]
[364908751,1749294633843,-527.91450971,0.00019783,2]
[364908752,1749294633856,-527.91450971,0.00019783,2]
[364908753,1749294633869,-527.91450971,0.00019783,2]
[364908754,1749294633882,-527.91450971,0.00019783,2]
[364908755,1749294633895,-527.91450971,0.00019783,2]
[364908756,1749294633908,-527.91450971,0.00019783,2]
[364908757,1749294633921,-527.91450971,0.00019783,2]
[364908758,1749294633939,-527.91450971,0.00019783,2]
[364908759,1749294633956,-527.91450971,0.00019783,2]
[364908760,1749294633969,-527.91450971,0.00019783,2]
[364908761,1749294633983,-527.91450971,0.00019783,2]
[364908762,1749294633995,-527.91450971,0.00019783,2]
[364908763,1749294634009,-527.91450971,0.00019783,2]
[364908764,1749294634022,-527.91450971,0.00019783,2]
[364908765,1749294634035,-527.91450971,0.00019783,2]
[364908766,1749294634047,-527.91450971,0.00019783,2]
[364908767,1749294634060,-527.91450971,0.00019783,2]
[364908768,1749294634072,-527.91450971,0.00019783,2]
[364908769,1749294634086,-527.91450971,0.00019783,2]
[364908770,1749294634099,-527.91450971,0.00019783,2]
[364908771,1749294634111,-527.91450971,0.00019783,2]
[364908772,1749294634124,-527.91450959,0.00019783,2]
[364908773,1749294634137,-440.0,0.00019783,2]
[364908774,1749294634155,-440.0,0.00019784,2]
[364908775,1749294634169,-440.0,0.00019784,2]
[364908776,1749294634182,-951.05,0.00019784,2]
[364908777,1749294634194,-440.0,0.00019784,2]
[364908778,1749294634206,-1463.92,0.00019784,2]
[364908779,1749294634218,-440.0,0.00019784,2]
[364908780,1749294634232,-440.0,0.00019784,2]
[364908781,1749294634244,-440.0,0.00019784,2]
[364908782,1749294634263,-942.82,0.00019784,2]
[364908783,1749294634275,-1420.34,0.00019784,2]
[364908784,1749294634285,-440.0,0.00019784,2]
[364908785,1749294634294,-440.0,0.00019784,2]
[364908786,1749294634492,-440.0,0.00019784,2]
[364908787,1749294634507,-983.93,0.00019784,2]
[364908788,1749294634517,-1289.59,0.00019784,2]
[364908789,1749294634526,-440.0,0.00019784,2]
[364908790,1749294634536,-553.04,0.00019784,2]
[364908791,1749294634546,-440.0,0.00019784,2]
[364908792,1749294634555,-364.2046547,0.00019786,2]
[364908793,1749294634566,-435.39267255,0.00019786,2]
[364908794,1749294634576,-440.0,0.00019786,2]
[364908795,1749294634587,-440.0,0.00019786,2]
[364908796,1749294634597,-440.0,0.00019786,2]
[364908797,1749294634606,-440.0,0.00019786,2]
[364908798,1749294634616,-420.0,0.00019786,2]
[364908799,1749294634626,-440.0,0.00019786,2]
[364908800,1749294634635,-440.0,0.00019786,2]
[364908801,1749294634646,-732.6,0.00019786,2]
[364908802,1749294634656,-732.6,0.00019786,2]
[364908803,1749294634666,-732.6,0.00019786,2]
[364908804,1749294634676,-339.64031325,0.00019786,2]
[364908805,1749294634686,-400.0,0.00019786,2]
[364908806,1749294634695,-440.0,0.00019786,2]
[364908807,1749294634706,-440.0,0.00019786,2]
[364908808,1749294634717,-440.0,0.00019786,2]
[364908809,1749294634727,-440.0,0.00019786,2]
[364908810,1749294634738,-440.0,0.00019786,2]
[364908811,1749294634747,-440.0,0.00019786,2]
[364908812,1749294634757,-440.0,0.00019786,2]
[364908813,1749294634768,-440.0,0.00019786,2]
[364908814,1749294634778,-1686.44,0.00019786,2]
[364908815,1749294634789,-440.0,0.00019786,2]
[364908816,1749294634799,-440.0,0.00019786,2]
[364908817,1749294634809,-440.0,0.00019786,2]
[364908818,1749294634819,-440.0,0.00019786,2]
[364908819,1749294634829,-440.0,0.00019786,2]
[364908820,1749294634838,-626.62,0.00019786,2]
[364908821,1749294634847,-440.0,0.00019786,2]
[364908822,1749294634858,-440.0,0.00019786,2]
[364908823,1749294634868,-440.0,0.00019786,2]
[364908824,1749294634878,-440.0,0.00019786,2]
[364908825,1749294634888,-470.89,0.00019786,2]
[364908826,1749294634898,-1096.21,0.00019786,2]
[364908827,1749294634908,-440.0,0.00019786,2]
[364908828,1749294634918,-440.0,0.00019786,2]
[364908829,1749294634928,-440.0,0.00019786,2]
[364908830,1749294634941,-634.09,0.00019786,2]
[364908831,1749294634950,-440.0,0.00019786,2]
[364908832,1749294634960,-440.0,0.00019786,2]
[364908833,1749294634970,-440.0,0.00019786,2]
[364908834,1749294634981,-440.0,0.00019787,2]
[364908835,1749294634990,-440.0,0.00019787,2]
[364908836,1749294635000,-400.0,0.00019787,2]
[364908837,1749294635011,-440.0,0.00019787,2]
[364908838,1749294635021,-264.24397526,0.00019787,2]
[364908839,1749294635031,-440.0,0.00019787,2]
[364908840,1749294635041,-401.26695898,0.00019787,2]
[364908841,1749294635051,-440.0,0.00019787,2]
[364908842,1749294635061,-480.0,0.00019787,2]
[364908843,1749294635071,-350.0,0.00019787,2]
[364908844,1749294635080,-440.0,0.00019787,2]
[364908845,1749294635090,-440.0,0.00019787,2]
[364908846,1749294635100,-440.0,0.00019787,2]
[364908847,1749294635110,-491.69200944,0.00019787,2]
[364908848,1749294635119,-426.68893584,0.00019787,2]
[364908849,1749294635129,-440.0,0.00019787,2]
[364908850,1749294635139,-440.0,0.00019787,2]
[364908851,1749294635149,-410.0,0.00019787,2]
[364908852,1749294635158,-440.0,0.00019787,2]
[364908853,1749294635168,-390.0,0.00019787,2]
[364908854,1749294635177,-440.0,0.00019787,2]
[364908855,1749294635187,-302.05228082,0.00019787,2]
[364908856,1749294635197,-440.0,0.00019787,2]
[364908857,1749294635206,-440.0,0.00019787,2]
[364908858,1749294635216,-440.0,0.00019787,2]
[364908859,1749294635226,-440.0,0.00019787,2]
[364908860,1749294635236,-423.95202497,0.00019787,2]
[364908861,1749294635245,-440.0,0.00019787,2]
[364908862,1749294635254,-440.0,0.00019787,2]
[364908863,1749294635264,-440.72880569,0.00019787,2]
[364908864,1749294635273,-440.0,0.00019787,2]
[364908865,1749294635284,-453.57,0.00019787,2]
[364908866,1749294635293,-732.6,0.00019787,2]
[364908867,1749294635303,-440.0,0.00019787,2]
[364908868,1749294635313,-440.0,0.00019787,2]
[364908869,1749294635323,-629.25,0.00019787,2]
[364908870,1749294635333,-430.0,0.00019787,2]
[364908871,1749294635343,-440.0,0.00019787,2]
[364908872,1749294635358,-670.29,0.00019787,2]
[364908873,1749294635371,-440.0,0.00019787,2]
[364908874,1749294635382,-440.0,0.00019787,2]
[364908875,1749294635392,-440.0,0.00019787,2]
[364908876,1749294635402,-440.0,0.00019787,2]
[364908877,1749294635412,-260.81204356,0.00019787,2]
[364908878,1749294635421,-440.0,0.00019787,2]
[364908879,1749294635432,-440.0,0.00019787,2]
[364908880,1749294635442,-440.0,0.00019787,2]
[364908881,1749294635452,-426.60734563,0.00019787,2]
[364908882,1749294635462,-440.0,0.00019787,2]
[364908883,1749294635472,-440.0,0.00019787,2]
[364908884,1749294635482,-420.0,0.00019787,2]
[364908885,1749294635493,-420.0,0.00019788,2]
[364908886,1749294635503,-440.0,0.00019788,2]
[364908887,1749294635513,-440.0,0.00019788,2]
[364908888,1749294635524,-552.01713512,0.00019788,2]
[364908889,1749294635536,-440.0,0.00019788,2]
[364908890,1749294635546,-440.0,0.00019788,2]
[364908891,1749294635555,-191.42443319,0.00019788,2]
[364908892,1749294635568,-440.0,0.00019788,2]
[364908893,1749294635579,-440.0,0.00019788,2]
[364908894,1749294635591,-440.0,0.00019788,2]
[364908895,1749294635601,-215.1268,0.00019788,2]
[364908896,1749294635610,-440.0,0.00019788,2]
[364908897,1749294635620,-440.0,0.00019788,2]
[364908898,1749294635629,-440.0,0.00019788,2]
[364908899,1749294635639,-430.0,0.00019788,2]
[364908900,1749294635651,-440.0,0.00019788,2]
[364908901,1749294635661,-430.0,0.00019788,2]
[364908902,1749294635672,-420.0,0.00019788,2]
[364908903,1749294635682,-395.34589444,0.00019788,2]
[364908904,1749294635692,-440.0,0.00019788,2]
[364908905,1749294635701,-440.0,0.00019788,2]
[364908906,1749294635712,-224.65117827,0.00019788,2]
[364908907,1749294635721,-410.0,0.00019788,2]
[364908908,1749294635732,-440.0,0.00019788,2]
[364908909,1749294635742,-440.0,0.00019788,2]
[364908910,1749294635752,-440.0,0.00019788,2]
[364908911,1749294635762,-420.0,0.00019788,2]
[364908912,1749294635772,-440.0,0.00019788,2]
[364908913,1749294635782,-440.0,0.00019788,2]
[364908914,1749294635792,-420.0,0.00019788,2]
[364908915,1749294635802,-440.0,0.00019788,2]
[364908916,1749294635811,-397.44528553,0.00019788,2]
[364908917,1749294635821,-291.41388107,0.00019788,2]
[364908918,1749294635831,-420.0,0.00019788,2]
[364908919,1749294635841,-440.0,0.00019788,2]
[364908920,1749294635851,-420.0,0.00019788,2]
[364908921,1749294635862,-440.0,0.00019788,2]
[364908922,1749294635871,-440.0,0.00019788,2]
[364908923,1749294635882,-440.0,0.00019788,2]
[364908924,1749294635892,-440.0,0.00019788,2]
[364908925,1749294635902,-440.0,0.00019788,2]
[364908926,1749294635913,-410.0,0.00019788,2]
[364908927,1749294635922,-370.0,0.00019788,2]
[364908928,1749294635934,-440.0,0.00019788,2]
[364908929,1749294635945,-440.0,0.00019788,2]
[364908930,1749294635956,-440.0,0.00019788,2]
[364908931,1749294635966,-440.0,0.00019788,2]
[364908932,1749294635977,-440.0,0.00019788,2]
[364908933,1749294635987,-440.0,0.00019788,2]
[364908934,1749294635997,-420.0,0.00019788,2]
[364908935,1749294636007,-440.0,0.00019788,2]
[364908936,1749294636017,-280.0,0.00019788,2]
[364908937,1749294636027,-440.0,0.00019788,2]
[364908938,1749294636037,-440.0,0.00019788,2]
[364908939,1749294636047,-732.6,0.00019788,2]
[364908940,1749294636057,-440.0,0.00019788,2]
[364908941,1749294636066,-440.0,0.00019788,2]
[364908942,1749294636076,-440.0,0.00019788,2]
[364908943,1749294636085,-440.0,0.00019788,2]
[364908944,1749294636094,-410.0,0.00019788,2]
[364908945,1749294636104,-440.0,0.00019788,2]
[364908946,1749294636114,-440.0,0.00019788,2]
[364908947,1749294636124,-440.0,0.00019788,2]
[364908948,1749294636133,-440.0,0.00019788,2]
[364908949,1749294636144,-440.0,0.00019788,2]
[364908950,1749294636154,-440.0,0.00019788,2]
[364908951,1749294636164,-420.0,0.00019788,2]
[364908952,1749294636174,-440.0,0.00019788,2]
[364908953,1749294636185,-440.0,0.00019788,2]
[364908954,1749294636195,-440.0,0.00019788,2]
[364908955,1749294636205,-500.0,0.00019788,2]
[364908956,1749294636217,-506.92092515,0.00019788,2]
[364908957,1749294636226,-440.0,0.00019788,2]
[364908958,1749294636236,-430.0,0.00019788,2]
[364908959,1749294636246,-440.0,0.00019788,2]
[364908960,1749294636256,-440.0,0.00019788,2]
[364908961,1749294636266,-430.0,0.00019788,2]
[364908962,1749294636275,-252.93233918,0.00019788,2]
[364908963,1749294636285,-440.0,0.00019788,2]
[364908964,1749294636295,-440.0,0.00019788,2]
[364908965,1749294636304,-430.56797011,0.00019788,2]
[364908966,1749294636314,-440.0,0.00019788,2]
[364908967,1749294636324,-440.0,0.00019788,2]
[364908968,1749294636333,-440.0,0.00019788,2]
[364908969,1749294636343,-430.0,0.00019788,2]
[364908970,1749294636352,-430.0,0.00019788,2]
[364908971,1749294636362,-430.0,0.00019788,2]
[364908972,1749294636372,-430.0,0.00019788,2]
[364908973,1749294636384,-440.0,0.00019788,2]
[364908974,1749294636395,-440.0,0.00019788,2]
[364908975,1749294636409,-573.86707966,0.00019788,2]
[364908976,1749294636418,-430.0,0.00019788,2]
[364908977,1749294636428,-580.0,0.00019789,2]
[364908978,1749294636438,-440.0,0.00019789,2]
[364908979,1749294636447,-327.56847809,0.00019789,2]
[364908980,1749294636459,-430.0,0.00019789,2]
[364908981,1749294636470,-440.0,0.00019789,2]
[364908982,1749294636479,-732.6,0.00019789,2]
[364908983,1749294636490,-23877.0114198,0.0001979,2]
[364908984,1749294636501,-211.97050896,0.00019822,2]
[364908985,1749294636510,-211.97050896,0.0001996,2]
[364908986,1749294636520,-4645.95486622,0.00019961,2]
[364908987,1749294636531,-564.86,0.00020051,3]
[364908988,1749294636541,-440.0,0.00020058,2]
[364908989,1749294636550,-440.0,0.00020058,2]
[364908990,1749294636561,-951.05,0.00020058,2]
[364908991,1749294636572,-440.0,0.00020058,2]
[364908992,1749294636582,-1463.92,0.00020058,2]
[364908993,1749294636591,-440.0,0.00020058,2]
[364908994,1749294636604,-469.85050634,0.00020058,2]
[364908995,1749294636613,-942.82,0.00020058,2]
[364908996,1749294636624,-440.0,0.00020058,2]
[364908997,1749294636633,-1420.34,0.00020058,2]
[364908998,1749294636643,-440.0,0.00020058,2]
[364908999,1749294636653,-440.0,0.00020058,2]
[364909000,1749294636664,-440.0,0.00020058,2]
[364909001,1749294636676,-983.93,0.00020058,2]
[364909002,1749294636687,-1289.59,0.00020058,2]
[364909003,1749294636698,-440.0,0.00020058,2]
[364909004,1749294636710,-553.04,0.00020058,2]
[364909005,1749294636722,-440.0,0.00020058,2]
[364909006,1749294636731,-440.0,0.0002006,2]
[364909007,1749294636740,-401.69,0.0002006,2]
[364909008,1749294636750,-440.0,0.0002006,2]
[364909009,1749294636759,-440.0,0.0002006,2]
[364909010,1749294636769,-440.0,0.0002006,2]
[364909011,1749294636778,-440.0,0.0002006,2]
[364909012,1749294636789,-732.6,0.0002006,2]
[364909013,1749294636799,-440.0,0.0002006,2]
[364909014,1749294636808,-440.0,0.0002006,2]
[364909015,1749294636819,-244.57708582,0.0002006,2]
[364909016,1749294636828,-187.29422225,0.0002006,2]
[364909017,1749294636838,-440.0,0.0002006,2]
[364909018,1749294636848,-440.0,0.0002006,2]
[364909019,1749294636857,-181.28,0.0002006,2]
[364909020,1749294636867,-1686.44,0.0002006,2]
[364909021,1749294636876,-440.0,0.0002006,2]
[364909022,1749294636886,-440.0,0.0002006,2]
[364909023,1749294636896,-440.0,0.0002006,2]
[364909024,1749294636905,-440.0,0.0002006,2]
[364909025,1749294636915,-151.0,0.0002006,2]
[364909026,1749294636924,-440.0,0.0002006,2]
[364909027,1749294636935,-626.62,0.0002006,2]
[364909028,1749294636946,-440.0,0.0002006,2]
[364909029,1749294636955,-440.0,0.0002006,2]
[364909030,1749294636965,-440.0,0.0002006,2]
[364909031,1749294636974,-470.89,0.0002006,2]
[364909032,1749294636985,-1096.21,0.0002006,2]
[364909033,1749294636995,-440.0,0.0002006,2]
[364909034,1749294637005,-440.0,0.0002006,2]
[364909035,1749294637017,-440.0,0.0002006,2]
[364909036,1749294637026,-634.09,0.0002006,2]
[364909037,1749294637036,-440.0,0.0002006,2]
[364909038,1749294637045,-440.0,0.0002006,2]
[364909039,1749294637055,-440.0,0.0002006,2]
[364909040,1749294637065,-224.4738317,0.00020061,2]
[364909041,1749294637074,-440.0,0.00020061,2]
[364909042,1749294637084,-353.93507252,0.00020061,2]
[364909043,1749294637095,-440.0,0.00020061,2]
[364909044,1749294637104,-440.0,0.00020061,2]
[364909045,1749294637114,-400.0,0.00020061,2]
[364909046,1749294637125,-440.0,0.00020061,2]
[364909047,1749294637134,-410.0,0.00020061,2]
[364909048,1749294637144,-440.0,0.00020061,2]
[364909049,1749294637154,-440.0,0.00020061,2]
[364909050,1749294637164,-370.0,0.00020061,2]
[364909051,1749294637174,-430.0,0.00020061,2]
[364909052,1749294637184,-440.0,0.00020061,2]
[364909053,1749294637194,-390.0,0.00020061,2]
[364909054,1749294637204,-440.0,0.00020061,2]
[364909055,1749294637215,-440.0,0.00020061,2]
[364909056,1749294637225,-440.0,0.00020061,2]
[364909057,1749294637235,-453.57,0.00020061,2]
[364909058,1749294637244,-440.0,0.00020061,2]
[364909059,1749294637255,-440.0,0.00020061,2]
[364909060,1749294637265,-629.25,0.00020061,2]
[364909061,1749294637276,-440.0,0.00020061,2]
[364909062,1749294637286,-670.29,0.00020061,2]
[364909063,1749294637296,-440.0,0.00020061,2]
[364909064,1749294637307,-508.79,0.00020061,2]
[364909065,1749294637318,-440.0,0.00020061,2]
[364909066,1749294637327,-410.47161281,0.00020061,2]
[364909067,1749294637337,-440.0,0.00020061,2]
[364909068,1749294637472,-440.0,0.00020061,2]
[364909069,1749294637484,-410.0,0.00020061,2]
[364909070,1749294637493,-440.0,0.00020061,2]
[364909071,1749294637504,-440.0,0.00020062,2]
[364909072,1749294637516,-440.0,0.00020062,2]
[364909073,1749294637527,-440.0,0.00020062,2]
[364909074,1749294637537,-440.0,0.00020062,2]
[364909075,1749294637546,-440.0,0.00020062,2]
[364909076,1749294637556,-410.0,0.00020062,2]
[364909077,1749294637566,-440.0,0.00020062,2]
[364909078,1749294637576,-440.0,0.00020062,2]
[364909079,1749294637585,-440.0,0.00020062,2]
[364909080,1749294637596,-440.0,0.00020062,2]
[364909081,1749294637606,-245.44399174,0.00020062,2]
[364909082,1749294637616,-440.0,0.00020062,2]